{"text_format":"3","workbook":"xlsx","n_sheets":1,"sheets":["Протокол ШЭ ВОШ по предмету"],"not_rendered":{"external_links":3,"defined_names":1},"read":"whole","date_system":"1900"}

{"sheet":"Протокол ШЭ ВОШ по предмету","index":0,"n_rows":31,"n_cols":15,"rows_kept":31}
["№","Фамилия","Имя","Отчество","Дата рождения","Пол","Участник с ОВЗ (да/нет)","Класс обучения","Класс участия","Балл","Максимальный балл","Статус","Призёр муниципального этапа прошлого года","ФИО учителя","Место работы учителя"]
[1,"Никифорова ","Ангелина","Артемовна","2008-01-28","ж","нет",8,8,{"$f":"[1]edu166302_sch22_8_result!E7","v":24},50,"Участник","нет","Гайнутдинова Алина Марселевна","Муниципальное бюджетное общеобразовательное учреждение \"Многопрофильный лицей №37\" Нижнекамского муниципального района Республики Татарстан"]
[2,"Виноградова ","Анастасия","Сергеевна","2008-11-08","ж","нет",8,8,{"$f":"[1]edu166302_sch22_8_result!E8","v":20.5},50,"Участник","нет","Гайнутдинова Алина Марселевна","Муниципальное бюджетное общеобразовательное учреждение \"Многопрофильный лицей №37\" Нижнекамского муниципального района Республики Татарстан"]
[3,"Мулюкова","Алия","Алмазовна","2008-09-18","ж","нет",8,8,{"$f":"[1]edu166302_sch22_8_result!E9","v":19},50,"Участник","нет","Гайнутдинова Алина Марселевна","Муниципальное бюджетное общеобразовательное учреждение \"Многопрофильный лицей №37\" Нижнекамского муниципального района Республики Татарстан"]
[4,"Шихранова","Ульяна","Алексеевна","2008-11-07","ж","нет",8,8,{"$f":"[1]edu166302_sch22_8_result!E10","v":18},50,"Участник","нет","Гайнутдинова Алина Марселевна","Муниципальное бюджетное общеобразовательное учреждение \"Многопрофильный лицей №37\" Нижнекамского муниципального района Республики Татарстан"]
[5,"Зубаиров","Камиль","Ренатович","2008-07-01","м","нет",8,8,{"$f":"[1]edu166302_sch22_8_result!E11","v":17},50,"Участник","нет","Гайнутдинова Алина Марселевна","Муниципальное бюджетное общеобразовательное учреждение \"Многопрофильный лицей №37\" Нижнекамского муниципального района Республики Татарстан"]
[6,"Бобровская ","Алла","Сергеевна","2008-07-21","ж","нет",8,8,{"$f":"[1]edu166302_sch22_8_result!E12","v":16.5},50,"Участник","нет","Гайнутдинова Алина Марселевна","Муниципальное бюджетное общеобразовательное учреждение \"Многопрофильный лицей №37\" Нижнекамского муниципального района Республики Татарстан"]
[7,"Никифорова ","Карина","Денисовна","2008-07-17","ж","нет",8,8,{"$f":"[1]edu166302_sch22_8_result!E13","v":16.5},50,"Участник","нет","Гайнутдинова Алина Марселевна","Муниципальное бюджетное общеобразовательное учреждение \"Многопрофильный лицей №37\" Нижнекамского муниципального района Республики Татарстан"]
[8,"Рахматуллина","Лиана","Айратовна","2008-07-27","ж","нет",8,8,{"$f":"[1]edu166302_sch22_8_result!E14","v":15.5},50,"Участник","нет","Гайнутдинова Алина Марселевна","Муниципальное бюджетное общеобразовательное учреждение \"Многопрофильный лицей №37\" Нижнекамского муниципального района Республики Татарстан"]
[9,"Лаврентьева","Екатерина","Андреевна","2008-02-08","ж","нет",8,8,{"$f":"[1]edu166302_sch22_8_result!E15","v":15},50,"Участник","нет","Гайнутдинова Алина Марселевна","Муниципальное бюджетное общеобразовательное учреждение \"Многопрофильный лицей №37\" Нижнекамского муниципального района Республики Татарстан"]
[10,"Гайнутдинов","Самат","Рустемович","2008-02-27","м","нет",8,8,{"$f":"[1]edu166302_sch22_8_result!E16","v":13},50,"Участник","нет","Гайнутдинова Алина Марселевна","Муниципальное бюджетное общеобразовательное учреждение \"Многопрофильный лицей №37\" Нижнекамского муниципального района Республики Татарстан"]
[11,"Васильева","Диана","Владимировна","2008-04-24","ж","нет",8,8,{"$f":"[1]edu166302_sch22_8_result!E17","v":13},50,"Участник","нет","Гайнутдинова Алина Марселевна","Муниципальное бюджетное общеобразовательное учреждение \"Многопрофильный лицей №37\" Нижнекамского муниципального района Республики Татарстан"]
[12,"Сельсков","Илья","Михайлович","2008-01-19","м","нет",8,8,{"$f":"[1]edu166302_sch22_8_result!E18","v":12.5},50,"Участник","нет","Гайнутдинова Алина Марселевна","Муниципальное бюджетное общеобразовательное учреждение \"Многопрофильный лицей №37\" Нижнекамского муниципального района Республики Татарстан"]
[13,"Петухов","Тимур ","Альбертович","2007-12-17","м","нет",8,8,{"$f":"[1]edu166302_sch22_8_result!E19","v":11.5},50,"Участник","нет","Гайнутдинова Алина Марселевна","Муниципальное бюджетное общеобразовательное учреждение \"Многопрофильный лицей №37\" Нижнекамского муниципального района Республики Татарстан"]
[14,"Горюнов","Родион","Андреевич","2007-07-06","м","нет",9,9,{"$f":"[2]edu166302_sch22_9_result!E7","v":22},50,"Участник","нет","Гайнутдинова Алина Марселевна","Муниципальное бюджетное общеобразовательное учреждение \"Многопрофильный лицей №37\" Нижнекамского муниципального района Республики Татарстан"]
[15,"Волков","Никита","Витальевич","2007-08-30","м","нет",9,9,{"$f":"[2]edu166302_sch22_9_result!E8","v":22},50,"Участник","нет","Гайнутдинова Алина Марселевна","Муниципальное бюджетное общеобразовательное учреждение \"Многопрофильный лицей №37\" Нижнекамского муниципального района Республики Татарстан"]
[16,"Нуруллина","Лилия","Азатовна","2007-08-17","ж","нет",9,9,{"$f":"[2]edu166302_sch22_9_result!E9","v":21},50,"Участник","нет","Гайнутдинова Алина Марселевна","Муниципальное бюджетное общеобразовательное учреждение \"Многопрофильный лицей №37\" Нижнекамского муниципального района Республики Татарстан"]
[17,"Гайнутдинова","Ралина","Дамировна","2007-05-03","ж","нет",9,9,{"$f":"[2]edu166302_sch22_9_result!E10","v":20.5},50,"Участник","нет","Гайнутдинова Алина Марселевна","Муниципальное бюджетное общеобразовательное учреждение \"Многопрофильный лицей №37\" Нижнекамского муниципального района Республики Татарстан"]
[18,"Юзеев","Вячеслав","Владиславович","2007-06-15","м","нет",9,9,{"$f":"[2]edu166302_sch22_9_result!E11","v":20},50,"Участник","нет","Гайнутдинова Алина Марселевна","Муниципальное бюджетное общеобразовательное учреждение \"Многопрофильный лицей №37\" Нижнекамского муниципального района Республики Татарстан"]
[19,"Смирнов","Артем","Сергеевич","2007-08-27","м","нет",9,9,{"$f":"[2]edu166302_sch22_9_result!E12","v":19.25},50,"Участник","нет","Гайнутдинова Алина Марселевна","Муниципальное бюджетное общеобразовательное учреждение \"Многопрофильный лицей №37\" Нижнекамского муниципального района Республики Татарстан"]
[20,"Александров","Владислав","Сергеевич","2007-06-15","м","нет",9,9,{"$f":"[2]edu166302_sch22_9_result!E13","v":18.45},50,"Участник","нет","Гайнутдинова Алина Марселевна","Муниципальное бюджетное общеобразовательное учреждение \"Многопрофильный лицей №37\" Нижнекамского муниципального района Республики Татарстан"]
[21,"Ахметова","Миляуша","Равилевна","2007-07-15","ж","нет",9,9,{"$f":"[2]edu166302_sch22_9_result!E14","v":18.25},50,"Участник","нет","Гайнутдинова Алина Марселевна","Муниципальное бюджетное общеобразовательное учреждение \"Многопрофильный лицей №37\" Нижнекамского муниципального района Республики Татарстан"]
[22,"Хамидуллина","Гульшат","Ильмировна","2007-03-22","ж","нет",9,9,{"$f":"[2]edu166302_sch22_9_result!E15","v":18},50,"Участник","нет","Гайнутдинова Алина Марселевна","Муниципальное бюджетное общеобразовательное учреждение \"Многопрофильный лицей №37\" Нижнекамского муниципального района Республики Татарстан"]
[23,"Мирзагитов","Рифат","Айратович","2007-12-02","ж","нет",9,9,{"$f":"[2]edu166302_sch22_9_result!E16","v":16.85},50,"Участник","нет","Гайнутдинова Алина Марселевна","Муниципальное бюджетное общеобразовательное учреждение \"Многопрофильный лицей №37\" Нижнекамского муниципального района Республики Татарстан"]
[24,"Гильманова","Камилла","Алмазовна","2006-11-11","ж","нет",9,9,{"$f":"[2]edu166302_sch22_9_result!E17","v":15.85},50,"Участник","нет","Гайнутдинова Алина Марселевна","Муниципальное бюджетное общеобразовательное учреждение \"Многопрофильный лицей №37\" Нижнекамского муниципального района Республики Татарстан"]
[25,"Ломов","Кирилл","Евгеньевич","2007-05-17","м","нет",9,9,{"$f":"[2]edu166302_sch22_9_result!E18","v":13.25},50,"Участник","нет","Гайнутдинова Алина Марселевна","Муниципальное бюджетное общеобразовательное учреждение \"Многопрофильный лицей №37\" Нижнекамского муниципального района Республики Татарстан"]
[26,"Девятова","Рената","Айратовна","2005-05-23","ж","нет",11,11,{"$f":"[3]edu166302_sch22_11_result!E7","v":15},50,"Участник","нет","Гайнутдинова Алина Марселевна","Муниципальное бюджетное общеобразовательное учреждение \"Многопрофильный лицей №37\" Нижнекамского муниципального района Республики Татарстан"]
[27,"Арсентьева","Анастасия","Викторовна","2005-06-10","ж","нет",11,11,{"$f":"[3]edu166302_sch22_11_result!E8","v":13.5},50,"Участник","нет","Гайнутдинова Алина Марселевна","Муниципальное бюджетное общеобразовательное учреждение \"Многопрофильный лицей №37\" Нижнекамского муниципального района Республики Татарстан"]
[28,"Хасанова","Аделя","Ильшатовна","2005-02-16","ж","нет",11,11,{"$f":"[3]edu166302_sch22_11_result!E9","v":12.5},50,"Участник","нет","Гайнутдинова Алина Марселевна","Муниципальное бюджетное общеобразовательное учреждение \"Многопрофильный лицей №37\" Нижнекамского муниципального района Республики Татарстан"]
[29,"Исаева","Екатерина","Максимовна","2005-05-21","ж","нет",11,11,{"$f":"[3]edu166302_sch22_11_result!E10","v":10.5},50,"Участник","нет","Гайнутдинова Алина Марселевна","Муниципальное бюджетное общеобразовательное учреждение \"Многопрофильный лицей №37\" Нижнекамского муниципального района Республики Татарстан"]
[30,"Зарипова","Наргиз","Ильгизовна","2005-09-06","ж","нет",11,11,{"$f":"[3]edu166302_sch22_11_result!E11","v":6.5},50,"Участник","нет","Гайнутдинова Алина Марселевна","Муниципальное бюджетное общеобразовательное учреждение \"Многопрофильный лицей №37\" Нижнекамского муниципального района Республики Татарстан"]